bitfinex/quotes_SOLUSD_20230701
["timestamp","ask_amount","ask_price","bid_price","bid_amount"]
[1688193762895,23.253,18.191,18.183,78.262]
[1688193765694,23.253,18.191,18.183,55.0]
[1688193765896,55.0,18.19,18.179,23.268]
[1688193766106,83.135,18.187,18.173,59.922]
[1688193766301,83.135,18.187,18.171,157.88459406]
[1688193766302,13.66482868,18.186,18.171,48.53859406]
[1688193766505,23.265,18.182,18.171,48.53859406]
[1688193766802,23.265,18.182,18.171,71.815594]
[1688193767589,23.263,18.183,18.171,71.815594]
[1688193769404,22.763,18.183,18.171,71.815594]
[1688193770707,150.779,18.19,18.171,71.815594]
[1688193771005,23.259,18.186,18.177,23.271]
[1688193774998,23.264,18.182,18.175,23.273]
[1688193775186,23.264,18.182,18.173,23.275]
[1688193778706,23.264,18.182,18.17,55.0]
[1688193779025,23.264,18.182,18.173,23.275]
[1688193779320,55.0,18.185,18.173,23.275]
[1688193779499,34.08175472,18.184,18.173,23.275]
[1688193779814,23.263,18.184,18.173,23.275]
[1688193780210,55.0,18.185,18.173,23.275]
[1688193780603,8.66666902,18.184,18.173,23.275]
[1688193780797,23.263,18.183,18.173,23.275]
[1688193780998,23.262,18.184,18.173,23.275]
[1688193788024,55.0,18.183,18.173,23.275]
[1688193788229,23.266,18.181,18.173,23.275]
[1688193791427,78.264,18.183,18.173,23.275]
[1688193791627,8.86127402,18.182,18.173,23.275]
[1688193794312,32.12527402,18.182,18.173,23.275]
[1688193794632,23.264,18.182,18.173,23.275]
[1688193800820,55.0,18.183,18.173,23.275]
[1688193801430,78.263,18.183,18.173,23.275]
[1688193801636,8.62471918,18.182,18.173,23.275]
[1688193801832,55.0,18.181,18.173,23.275]
[1688193802327,55.0,18.182,18.173,23.275]
[1688193802528,78.265,18.182,18.173,23.275]
[1688193806545,55.0,18.182,18.173,23.275]
[1688193807034,23.266,18.181,18.173,23.275]
[1688193807341,55.0,18.182,18.173,23.275]
[1688193807840,9.7027652,18.181,18.173,23.275]
[1688193808134,12.39269528,18.182,18.173,23.275]
[1688193808339,55.0,18.181,18.173,83.199]
[1688193808519,11.69538523,18.182,18.173,83.199]
[1688193808719,55.0,18.181,18.173,23.275]
[1688193808923,55.0,18.183,18.173,23.275]
[1688193809120,11.21339631,18.182,18.173,23.275]
[1688193809341,55.0,18.181,18.173,23.275]
[1688193809548,12.0875249,18.182,18.173,23.275]
[1688193809746,55.0,18.181,18.173,23.275]
[1688193810241,55.0,18.182,18.173,23.275]
[1688193810430,11.518162,18.182,18.173,23.275]
[1688193810624,55.0,18.181,18.173,23.275]
[1688193810823,11.56312099,18.182,18.173,23.275]
[1688193811040,55.0,18.181,18.173,23.275]
[1688193815444,99.2448,18.184,18.173,23.275]
[1688193815742,12.62913646,18.183,18.173,23.275]
[1688193816048,55.0,18.182,18.173,23.275]
[1688193816343,55.0,18.183,18.173,23.275]
[1688193816646,11.46774623,18.182,18.173,23.275]
[1688193819644,12.30937329,18.183,18.173,23.275]
[1688193820840,35.57337329,18.183,18.173,23.275]
[1688193822837,55.0,18.182,18.173,23.275]
[1688193823038,23.268,18.18,18.173,23.275]
[1688193823648,23.268,18.18,18.172,23.277]
[1688193827451,55.0,18.179,18.172,23.277]
[1688193827651,78.268,18.179,18.172,23.277]
[1688193828031,78.268,18.179,18.171,23.278]
[1688193828239,78.268,18.179,18.167,35.79]
[1688193828548,10.29229923,18.178,18.169,23.28]
[1688193828752,55.0,18.177,18.169,23.28]
[1688193829051,78.271,18.177,18.169,23.28]
[1688193830155,78.271,18.177,18.168,23.282]
[1688193830343,10.11340778,18.176,18.164,59.951]
[1688193830536,23.276,18.174,18.167,23.283]
[1688193833354,23.276,18.174,18.162,59.951]
[1688193833652,23.277,18.172,18.165,23.285]
[1688193836443,23.275,18.174,18.165,23.285]
[1688193838741,9.00027811,18.173,18.165,23.285]
[1688193839053,32.27627811,18.173,18.165,23.285]
[1688193839232,23.276,18.173,18.165,23.285]
[1688193841356,97.1947,18.177,18.165,23.285]
[1688193841658,14.69360458,18.176,18.165,23.285]
[1688193841954,23.27,18.178,18.17,59.069]
[1688193842342,23.268,18.18,18.17,59.069]
[1688193842540,20.0,18.179,18.17,59.069]
[1688193843544,43.268,18.179,18.17,59.069]
[1688193844846,9.29140606,18.178,18.17,59.069]
[1688193845049,23.272,18.177,18.17,59.069]
[1688193847056,23.272,18.177,18.17,35.79]
[1688193848048,20.0,18.179,18.17,59.069]
[1688193848358,23.272,18.177,18.17,59.069]
[1688193848563,23.272,18.177,18.17,35.79]
[1688193852059,23.27,18.178,18.17,59.069]
[1688193852352,94.0922,18.182,18.17,59.069]
[1688193852538,16.17099039,18.18,18.17,59.069]
[1688193852741,23.27,18.178,18.17,59.069]
[1688193864067,23.27,18.178,18.17,35.79]
[1688193864869,9.7885645,18.177,18.171,23.278]
[1688193865163,153.9862,18.182,18.171,23.278]
[1688193865164,18.08623526,18.181,18.171,23.278]
[1688193865370,20.0,18.18,18.171,23.278]
[1688193865579,43.268,18.18,18.171,23.278]
[1688193865870,18.08623526,18.179,18.171,23.278]
[1688193866056,41.35523526,18.179,18.171,23.278]
[1688193866459,23.269,18.179,18.171,23.278]
[1688193882171,23.268,18.179,18.171,23.278]
[1688193882377,43.268,18.18,18.171,23.278]
[1688193882583,8.85502997,18.179,18.171,23.278]
[1688193882872,26.57718737,18.187,18.172,9.34597125]
[1688193883177,23.26,18.186,18.177,23.271]
[1688193883560,26.57718737,18.185,18.177,23.271]
[1688193883761,49.83818737,18.185,18.177,23.271]
[1688193883962,23.261,18.185,18.177,23.271]
[1688193886272,26.57718737,18.184,18.177,23.271]
[1688193886474,49.84018737,18.184,18.177,23.271]
[1688193886665,23.263,18.184,18.177,23.271]
[1688193892282,26.57718737,18.187,18.177,23.271]
[1688193892283,23.261,18.185,18.177,23.271]
[1688193892577,23.259,18.187,18.177,23.271]
[1688193892769,55.0,18.186,18.177,23.271]
[1688193893277,26.57718737,18.186,18.177,23.271]
[1688193895480,23.259,18.187,18.177,23.271]
[1688193895981,26.57718737,18.186,18.177,23.271]
[1688193898886,49.83718737,18.186,18.177,23.271]
[1688193913392,26.57718737,18.186,18.177,23.271]
[1688193913594,26.57718737,18.188,18.178,55.0]
[1688193913806,26.57718737,18.188,18.181,23.266]
[1688193914094,26.57718737,18.193,18.181,23.266]
[1688193914292,26.57718737,18.191,18.181,23.266]
[1688193914495,20.0,18.19,18.181,23.266]
[1688193915294,26.57718737,18.189,18.181,23.266]
[1688193915494,20.0,18.19,18.181,23.266]
[1688193915695,20.0,18.191,18.181,23.266]
[1688193915892,11.95835665,18.19,18.181,23.266]
[1688193916199,20.0,18.189,18.181,23.266]
[1688193916901,20.0,18.191,18.181,23.266]
[1688193917084,11.99050936,18.19,18.181,23.266]
[1688193917395,20.0,18.189,18.181,23.266]
[1688193919897,23.257,18.188,18.181,23.266]
[1688193920900,43.255,18.189,18.181,23.266]
[1688193932617,43.255,18.189,18.179,26.577188]
[1688193932811,68.35187393,18.188,18.172,23.276]
[1688193933112,19.31829874,18.183,18.172,23.276]
[1688193933313,23.267,18.18,18.172,71.703207]
[1688193933817,23.267,18.18,18.169,23.281]
[1688193934001,23.272,18.176,18.169,23.281]
[1688193942515,23.272,18.176,18.167,23.282]
[1688193942718,9.1361967,18.175,18.167,23.282]
[1688193942917,32.4101967,18.175,18.165,23.285]
[1688193944526,55.0,18.174,18.163,23.272]
[1688193944715,55.0,18.174,18.15,36.07]
[1688193944716,36.07,18.17,18.15,36.07]
[1688193944919,36.07,18.17,18.151,69.34197125]
[1688193944920,23.287,18.164,18.151,69.34197125]
[1688193945222,23.287,18.164,18.154,23.299]
[1688193945614,11.73393831,18.163,18.153,23.301]
[1688193945810,23.292,18.16,18.15,80.50613468]
[1688193946349,23.292,18.16,18.15,44.43613468]
[1688193946823,23.292,18.16,18.153,23.301]
[1688193947629,23.286,18.165,18.153,23.301]
[1688193947824,9.9797229,18.164,18.153,23.301]
[1688193948025,33.2677229,18.164,18.153,23.301]
[1688193948222,23.288,18.164,18.153,23.301]
[1688193948423,55.0,18.163,18.153,23.301]
[1688193948620,23.291,18.161,18.153,23.301]
[1688193950430,78.29,18.163,18.153,23.301]
[1688193950631,10.15287565,18.162,18.153,23.301]
[1688193953318,23.29,18.162,18.153,23.301]
[1688193956231,78.289,18.163,18.153,23.301]
[1688193956535,9.11914077,18.162,18.153,23.301]
[1688193957927,32.40914077,18.162,18.153,23.301]
[1688193958133,35.83,18.16,18.151,23.303]
[1688193958330,23.295,18.158,18.15,23.305]
[1688193959726,23.295,18.158,18.149,23.307]
[1688193960025,9.08929848,18.157,18.149,23.307]
[1688193960227,23.299,18.156,18.149,23.307]
[1688193960924,23.296,18.157,18.149,23.307]
[1688193961640,23.296,18.157,18.149,22.807]
[1688193962626,23.295,18.158,18.149,22.807]
[1688193962944,9.6971474,18.157,18.149,22.807]
[1688193964644,13.47295671,18.159,18.149,22.807]
[1688193965838,23.295,18.158,18.149,22.807]
[1688193966041,23.294,18.159,18.149,22.807]
[1688193966236,10.19661311,18.158,18.149,22.807]
[1688193972051,33.49261311,18.158,18.149,22.807]
[1688193972355,23.296,18.158,18.149,22.807]
[1688193974252,132.11,18.16,18.149,22.807]
[1688193974253,23.294,18.159,18.149,22.807]
[1688193974454,10.75289355,18.158,18.149,22.807]
[1688193976556,34.04889355,18.158,18.149,22.807]
[1688193976850,23.296,18.158,18.149,22.807]
[1688193978354,9.40553967,18.157,18.149,22.807]
[1688193978554,32.70253967,18.157,18.149,22.807]
[1688193978753,23.297,18.157,18.149,22.807]
[1688193991963,23.295,18.159,18.149,22.807]
[1688193992165,14.55220852,18.158,18.149,22.807]
[1688193995667,14.55220852,18.158,18.15,110.79]
[1688193995865,20.0,18.181,18.152,192.756]
[1688193995866,2.11994013,18.167,18.152,192.756]
[1688193996071,2.11994013,18.167,18.16,35.79]
[1688193996265,20.0,18.172,18.162,23.29]
[1688193996672,20.0,18.174,18.163,28.36011065]
[1688193996968,23.276,18.173,18.166,23.284]
[1688193997763,23.276,18.173,18.164,23.286]
[1688193998167,23.274,18.175,18.165,13.45475726]
[1688193998363,23.274,18.175,18.168,23.282]
[1688194002075,23.271,18.177,18.168,23.282]
[1688194011094,27.22402179,18.181,18.168,23.282]
[1688194011385,23.258,18.188,18.17,35.79]
[1688194011583,109.225,18.192,18.178,83.176]
[1688194011584,94.4744,18.192,18.178,83.176]
[1688194011881,20.0,18.191,18.183,23.262]
[1688194012261,485.27883488,18.197,18.183,23.262]
[1688194012262,425.43283488,18.197,18.183,23.262]
[1688194012467,94.4744,18.199,18.188,23.256]
[1688194012668,117.7174,18.199,18.188,23.256]
[1688194013981,55.0,18.198,18.181,109.285]
[1688194014286,23.25,18.194,18.183,59.889]
[1688194015777,23.25,18.194,18.182,55.0]
[1688194016485,23.25,18.194,18.181,109.285]
[1688194016890,23.25,18.194,18.185,23.26]
[1688194019380,55.0,18.193,18.185,23.26]
[1688194019585,23.249,18.194,18.185,23.26]
[1688194019790,78.25,18.193,18.185,23.26]
[1688194019992,55.0,18.192,18.185,23.26]
[1688194020683,23.25,18.193,18.185,23.26]
[1688194021086,55.0,18.192,18.185,23.26]
[1688194021801,23.256,18.189,18.177,109.31]
[1688194022092,55.0,18.188,18.176,59.912]
[1688194022304,23.258,18.187,18.179,23.267]
[1688194022590,78.26,18.186,18.179,23.267]
[1688194022791,23.26,18.186,18.179,23.267]
[1688194023996,23.258,18.188,18.179,23.267]
[1688194024876,55.0,18.187,18.179,23.267]
[1688194025077,23.26,18.186,18.179,23.267]
[1688194026076,23.256,18.189,18.179,23.267]
[1688194036287,23.256,18.189,18.174,24.90388882]
[1688194036488,23.262,18.185,18.175,23.272]
[1688194038910,23.258,18.187,18.175,23.272]
[1688194040993,23.258,18.187,18.176,19.39037578]
[1688194041204,23.258,18.187,18.179,23.268]
[1688194056015,93.3233,18.19,18.179,23.268]
[1688194056915,116.5783,18.19,18.179,23.268]
[1688194057101,116.5783,18.19,18.18,13.42279985]
[1688194057299,116.5783,18.19,18.183,23.263]
[1688194057494,116.5783,18.19,18.179,13.42279985]
[1688194059017,106.5783,18.19,18.181,23.265]
[1688194059409,23.252,18.192,18.182,11.46909033]
[1688194059726,23.25,18.194,18.186,23.259]
[1688194060919,23.245,18.197,18.186,23.259]
[1688194061119,23.245,18.197,18.187,17.71209433]
[1688194061319,23.245,18.197,18.189,23.255]
[1688194066628,114.2799,18.2,18.189,23.255]
[1688194066826,55.0,18.199,18.19,17.71209433]
[1688194067025,55.0,18.199,18.189,23.255]
[1688194067026,78.243,18.199,18.192,23.251]
[1688194067223,91.0379,18.2,18.192,23.251]
[1688194067405,398.5,18.207,18.192,83.112]
[1688194067406,23.236,18.204,18.192,83.112]
[1688194068121,20.0,18.203,18.192,83.112]
[1688194068327,23.239,18.202,18.192,83.112]
[1688194068528,20.0,18.201,18.192,83.112]
[1688194069030,20.0,18.201,18.192,23.251]
[1688194069210,20.0,18.205,18.192,23.251]
[1688194070827,23.24,18.201,18.192,23.251]
[1688194073032,23.24,18.201,18.189,10.83719922]
[1688194073215,23.24,18.201,18.19,58.42279985]
[1688194073411,23.24,18.201,18.19,55.0]
[1688194073933,23.24,18.201,18.191,23.252]
[1688194077027,23.24,18.201,18.188,13.99585647]
[1688194077233,90.94,18.2,18.188,13.99585647]
[1688194077429,90.94,18.2,18.18,23.266]
[1688194077430,192.29,18.197,18.181,47.91233717]
[1688194077726,23.252,18.192,18.181,47.91233717]
[1688194079939,23.25,18.193,18.181,47.91233717]
[1688194081924,23.249,18.195,18.181,47.91233717]
[1688194086136,92.8925,18.196,18.181,47.91233717]
[1688194086336,92.8925,18.196,18.182,55.0]
[1688194086543,92.8925,18.196,18.186,192.398]
[1688194086743,55.0,18.2,18.186,192.398]
[1688194087040,27.17978318,18.201,18.187,24.64633717]
[1688194087240,23.244,18.198,18.191,23.253]
[1688194088838,23.242,18.2,18.191,23.253]
[1688194096946,23.242,18.2,18.189,23.255]
[1688194097329,23.242,18.2,18.19,21.31232021]
[1688194097547,23.242,18.2,18.192,23.251]
[1688194097956,23.242,18.2,18.188,59.874]
[1688194098128,23.242,18.2,18.192,23.251]
[1688194103349,23.242,18.2,18.185,59.883]
[1688194103556,55.0,18.199,18.186,21.53141392]
[1688194103754,23.248,18.196,18.187,23.257]
[1688194117756,23.245,18.197,18.187,23.257]
[1688194118869,59.262,18.2,18.188,13.92279985]
[1688194119164,59.262,18.2,18.191,23.252]
[1688194119460,23.257,18.209,18.195,23.246]
[1688194119660,23.257,18.209,18.202,83.066]
[1688194119969,23.257,18.209,18.203,234.05795888]
[1688194120271,36.02,18.22,18.204,192.205]
[1688194120559,36.02,18.22,18.209,23.229]
[1688194121067,35.93,18.22,18.205,114.69380167]
[1688194121263,35.93,18.22,18.209,23.229]
[1688194121947,93.913,18.221,18.209,23.229]
[1688194122269,35.68,18.23,18.213,83.015]
[1688194122853,62.98528995,18.23,18.213,83.015]
[1688194123576,27.30528995,18.23,18.213,83.015]
[1688194123747,95.6978,18.236,18.213,83.015]
[1688194123956,95.6978,18.236,18.213,196.37546834]
[1688194124349,95.6978,18.236,18.213,83.015]
[1688194124350,35.69,18.23,18.213,83.015]
[1688194124568,179.41,18.23,18.213,83.015]
[1688194124869,178.73,18.23,18.213,83.015]
[1688194125667,55.0,18.229,18.213,83.015]
[1688194125967,35.62,18.22,18.212,23.226]
[1688194126363,55.0,18.219,18.212,23.226]
[1688194129458,28.69621067,18.228,18.212,23.226]
[1688194130574,122.52463557,18.23,18.212,23.226]
[1688194130769,23.208,18.226,18.212,23.226]
[1688194131169,98.9175,18.229,18.212,23.226]
[1688194131376,23.207,18.228,18.212,23.226]
[1688194131671,55.0,18.227,18.212,23.226]
[1688194131853,78.207,18.227,18.212,23.226]
[1688194133271,55.0,18.227,18.212,23.226]
[1688194133472,122.1225,18.229,18.212,23.226]
[1688194133658,98.9175,18.229,18.212,23.226]
[1688194133854,98.9175,18.229,18.21,35.79]
[1688194133855,98.9175,18.229,18.217,192.064]
[1688194134076,27.18563557,18.23,18.217,192.064]
[1688194134271,20.0,18.229,18.217,192.064]
[1688194134858,20.0,18.233,18.217,192.064]
[1688194135060,55.0,18.232,18.217,192.064]
[1688194135259,20.0,18.231,18.217,192.064]
[1688194135458,55.0,18.23,18.217,192.064]
[1688194135671,20.0,18.229,18.217,192.064]
[1688194135879,55.0,18.228,18.217,192.064]
[1688194137182,78.206,18.228,18.217,192.064]
[1688194137873,78.206,18.228,18.217,23.219]
[1688194147280,110.6803,18.229,18.217,23.219]
[1688194149277,196.77639726,18.236,18.217,23.219]
[1688194149481,23.201,18.232,18.218,55.0]
[1688194149779,42.703,18.231,18.222,23.213]
[1688194150084,23.203,18.231,18.222,23.213]
[1688194151288,55.0,18.23,18.222,23.213]
[1688194151587,23.203,18.23,18.222,23.213]
[1688194151883,20.0,18.229,18.222,23.213]
[1688194152885,20.0,18.23,18.222,23.213]
[1688194153686,43.204,18.23,18.222,23.213]
[1688194154688,20.0,18.23,18.222,23.213]
[1688194154983,20.0,18.231,18.222,23.213]
[1688194155387,23.206,18.228,18.222,23.213]
[1688194155770,23.204,18.229,18.222,23.213]
[1688194156070,20.0,18.233,18.222,23.213]
[1688194156272,23.203,18.231,18.222,23.213]
[1688194156471,43.203,18.23,18.222,23.213]
[1688194157188,23.198,18.234,18.222,23.213]
[1688194158373,55.0,18.233,18.222,23.213]
[1688194159098,91.1609,18.235,18.222,23.213]
[1688194159294,91.1609,18.235,18.223,55.0]
[1688194159478,91.1609,18.235,18.226,23.207]
[1688194159980,114.3579,18.235,18.226,23.207]
[1688194160184,91.1609,18.235,18.226,23.207]
[1688194162392,114.3579,18.235,18.226,23.207]
[1688194162571,55.0,18.234,18.226,23.207]
[1688194162779,78.198,18.234,18.222,59.761]
[1688194162982,78.198,18.234,18.224,23.21]
[1688194163580,78.198,18.234,18.217,53.40282819]
[1688194163777,78.198,18.234,18.221,23.213]
[1688194167796,23.204,18.23,18.216,59.781]
[1688194167984,55.0,18.229,18.219,23.217]
[1688194168183,23.207,18.228,18.219,23.217]
[1688194168392,78.208,18.227,18.219,23.217]
[1688194168577,55.0,18.226,18.219,23.217]
[1688194169287,55.0,18.227,18.219,23.217]
[1688194170783,78.208,18.227,18.219,23.217]
[1688194170984,28.90885943,18.248,18.219,23.217]
[1688194171298,59.635,18.261,18.23,71.31]
[1688194171489,1.8621434,18.26,18.241,82.888]
[1688194171801,35.84,18.26,18.241,82.888]
[1688194173497,96.9448,18.262,18.241,82.888]
[1688194173987,96.9448,18.262,18.242,102.142883]
[1688194174193,96.4448,18.262,18.248,191.745]
[1688194174388,398.5,18.268,18.25,35.57]
[1688194174593,398.5,18.276,18.255,191.668]
[1688194175105,661.98,18.28,18.255,191.668]
[1688194175291,109.628848,18.276,18.255,191.668]
[1688194175501,689.15340054,18.28,18.255,191.668]
[1688194176204,963.97181554,18.28,18.255,191.668]
[1688194176510,976.71174554,18.28,18.255,191.668]
[1688194177388,20.0,18.279,18.255,191.668]
[1688194177895,221.21174554,18.28,18.255,191.668]
[1688194178090,221.21174554,18.28,18.256,20.0]
[1688194178091,75.56333054,18.28,18.256,20.0]
[1688194178407,75.56333054,18.28,18.263,23.161]
[1688194179500,62.82340054,18.28,18.263,23.161]
[1688194179898,110.21509922,18.279,18.263,23.161]
[1688194180202,23.144,18.277,18.263,23.161]
[1688194180807,35.91,18.27,18.258,59.642]
[1688194181098,33.98219922,18.276,18.264,23.159]
[1688194181302,35.91,18.29,18.264,131.952]
[1688194181490,23.13,18.288,18.264,131.952]
[1688194181686,23.129,18.289,18.264,131.952]
[1688194182203,22.629,18.289,18.272,23.149]
[1688194183408,22.629,18.289,18.269,59.611]
[1688194183704,22.629,18.289,18.26,144.725]
[1688194183897,22.629,18.289,18.261,75.0]
[1688194184286,22.629,18.289,18.262,3.0]
[1688194184485,55.0,18.288,18.262,3.0]
[1688194184999,23.139,18.281,18.268,23.154]
[1688194185205,55.0,18.28,18.269,20.0]
[1688194185503,23.144,18.277,18.269,43.153]
[1688194186594,55.0,18.276,18.26,145.45417]
[1688194186902,23.151,18.272,18.26,23.164]
[1688194187208,23.153,18.27,18.26,23.164]
[1688194187602,23.158,18.266,18.258,23.166]
[1688194187789,22.658,18.266,18.258,23.166]
[1688194189100,55.0,18.269,18.258,23.166]
[1688194189305,92.049,18.273,18.258,23.166]
[1688194189502,251.0,18.29,18.258,23.166]
[1688194189701,23.134,18.285,18.269,191.521]
[1688194189906,23.134,18.285,18.269,82.76]
[1688194191006,23.144,18.277,18.267,23.155]
[1688194191611,23.141,18.279,18.267,82.77]
[1688194191991,91.6752,18.28,18.267,82.77]
[1688194192394,23.138,18.281,18.273,23.148]
[1688194192995,55.0,18.28,18.273,23.148]
[1688194193596,78.14,18.28,18.273,23.148]
[1688194194032,78.14,18.28,18.271,23.15]
[1688194195207,55.0,18.28,18.271,23.15]
[1688194195710,78.14,18.28,18.271,23.15]
[1688194196619,113.79,18.28,18.263,114.626]
[1688194196796,113.79,18.28,18.268,23.155]
[1688194197001,99.1339,18.279,18.268,23.155]
[1688194197197,23.145,18.276,18.25,35.58]
[1688194197399,20.0,18.275,18.257,23.168]
[1688194197701,23.153,18.27,18.257,23.168]
[1688194197909,55.0,18.269,18.257,23.168]
[1688194198107,23.158,18.266,18.257,23.168]
[1688194198797,23.156,18.268,18.257,23.168]
[1688194199400,55.0,18.267,18.257,23.168]
[1688194199703,23.16,18.264,18.257,23.168]
[1688194200012,55.0,18.263,18.253,23.173]
[1688194200212,23.164,18.261,18.253,23.173]
[1688194200412,99.8065,18.265,18.253,23.173]
[1688194200810,23.161,18.264,18.253,23.173]
[1688194201505,23.164,18.262,18.253,23.173]
[1688194202211,23.166,18.26,18.253,23.173]
[1688194202514,55.0,18.259,18.252,23.175]
[1688194202816,23.163,18.262,18.253,23.174]
[1688194203718,151.58955624,18.265,18.253,82.835]
[1688194204219,122.9655,18.265,18.253,82.835]
[1688194204819,99.8065,18.265,18.253,82.835]
[1688194205011,28.62172229,18.268,18.253,82.835]
[1688194205213,55.0,18.267,18.253,82.835]
[1688194205420,78.157,18.267,18.253,82.835]
[1688194205921,78.157,18.267,18.253,23.174]
[1688194208300,28.62172229,18.268,18.253,23.174]
[1688194208516,28.62172229,18.268,18.254,20.0]
[1688194208729,23.147,18.274,18.258,191.638]
[1688194208906,23.147,18.274,18.259,20.0]
[1688194209108,23.147,18.274,18.263,23.16]
[1688194210523,55.0,18.273,18.263,23.16]
[1688194210723,23.151,18.271,18.263,23.16]
[1688194210923,55.0,18.27,18.263,23.16]
[1688194211816,78.152,18.271,18.263,23.16]
[1688194212528,78.152,18.271,18.258,108.827]
[1688194212529,78.152,18.271,18.258,59.643]
[1688194212710,35.65,18.27,18.255,59.653]
[1688194212915,23.158,18.266,18.25,23.177]
[1688194213121,23.158,18.266,18.245,59.684]
[1688194213317,55.0,18.265,18.245,59.684]
[1688194213511,23.166,18.259,18.244,66.969229]
[1688194213715,23.166,18.259,18.244,23.184]
[1688194213919,55.0,18.258,18.244,23.184]
[1688194214121,23.173,18.254,18.244,23.184]
[1688194214317,55.0,18.253,18.244,23.184]
[1688194214521,23.17,18.256,18.244,23.185]
[1688194215504,55.0,18.255,18.244,23.185]
[1688194215820,23.174,18.253,18.244,23.185]
[1688194216406,23.177,18.251,18.244,23.185]
[1688194216602,78.178,18.25,18.242,23.187]
[1688194216903,23.178,18.25,18.242,23.187]
[1688194217608,55.0,18.249,18.242,23.187]
[1688194217811,78.179,18.249,18.242,23.187]
[1688194218222,1.0,37.976,18.242,191.808]
[1688194218223,59.627,18.264,18.242,191.808]
[1688194218427,23.166,18.26,18.243,38.60179985]
[1688194218725,23.166,18.26,18.248,23.18]
[1688194219024,92.101,18.261,18.252,23.175]
[1688194219228,115.265,18.261,18.252,23.175]
[1688194219523,92.101,18.261,18.252,23.175]
[1688194220110,92.101,18.261,18.249,128.88]
[1688194220111,115.266,18.261,18.254,23.172]
[1688194220420,23.164,18.261,18.249,20.0]
[1688194220624,21.164,18.261,18.252,23.174]
[1688194220815,55.0,18.26,18.252,23.174]
[1688194221019,23.156,18.267,18.252,82.838]
[1688194221322,94.2197,18.269,18.252,82.838]
[1688194221536,94.2197,18.269,18.253,75.0]
[1688194221724,94.2197,18.269,18.257,191.643]
[1688194221925,94.2197,18.269,18.258,20.0]
[1688194222128,94.2197,18.269,18.261,23.163]
[1688194223919,17.89,18.27,18.253,59.66]